[Event "*** MasterClass Titled Tuesday Blitz"]
[Site "Chess.com"]
[Date "2017.09.05"]
[Round "6"]
[White "Sebastian"]
[Black "GMKrikor"]
[Result "1-0"]
[WhiteElo "2823"]
[BlackElo "2585"]
[TimeControl "180+2"]
[EndTime "14:29:12 PDT"]
[Termination "Sebastian won on time"]

1. e4 {[%clk 0:03:01.9]} 1... e5 {[%clk 0:03:00.2]} 2. Nf3 {[%clk 0:03:02.8]}
2... Nc6 {[%clk 0:03:01.7]} 3. Bb5 {[%clk 0:03:04.4]} 3... Nf6 {[%clk
0:02:52.6]} 4. d3 {[%clk 0:03:05.3]} 4... Bc5 {[%clk 0:02:53.1]} 5. Bxc6 {[%clk
0:03:06.6]} 5... dxc6 {[%clk 0:02:54]} 6. Nbd2 {[%clk 0:03:08.3]} 6... Bd6
{[%clk 0:02:29.2]} 7. Nc4 {[%clk 0:03:05.8]} 7... Qe7 {[%clk 0:02:21.5]} 8. O-O
{[%clk 0:02:58]} 8... O-O {[%clk 0:02:22.4]} 9. b3 {[%clk 0:02:55.7]} 9... Nd7
{[%clk 0:02:14.4]} 10. Bg5 {[%clk 0:02:49.5]} 10... f6 {[%clk 0:02:13.1]} 11.
Bd2 {[%clk 0:02:50.4]} 11... Nc5 {[%clk 0:01:53.3]} 12. Ne3 {[%clk 0:02:50.9]}
12... g6 {[%clk 0:01:50.9]} 13. Kh1 {[%clk 0:02:45.6]} 13... Ne6 {[%clk
0:01:50.7]} 14. Ng1 {[%clk 0:02:46]} 14... Bd7 {[%clk 0:01:45.9]} 15. Ne2 {[%clk
0:02:45.8]} 15... Rae8 {[%clk 0:01:45.4]} 16. Nc4 {[%clk 0:02:34.7]} 16... c5
{[%clk 0:01:43.5]} 17. a4 {[%clk 0:02:32]} 17... Nd4 {[%clk 0:01:36.1]} 18. Nxd4
{[%clk 0:02:28.2]} 18... cxd4 {[%clk 0:01:37.5]} 19. f4 {[%clk 0:02:19.7]} 19...
Be6 {[%clk 0:01:27.7]} 20. f5 {[%clk 0:02:08.5]} 20... gxf5 {[%clk 0:01:24.8]}
21. exf5 {[%clk 0:02:08.8]} 21... Bd5 {[%clk 0:01:26.2]} 22. Bh6 {[%clk
0:02:09.6]} 22... Rf7 {[%clk 0:01:25]} 23. Nd2 {[%clk 0:02:10.6]} 23... Kh8
{[%clk 0:00:51.6]} 24. Ne4 {[%clk 0:02:11.4]} 24... Bxe4 {[%clk 0:00:39.4]} 25.
dxe4 {[%clk 0:02:12.2]} 25... Rg8 {[%clk 0:00:41.3]} 26. Qh5 {[%clk 0:01:46.7]}
26... Qd7 {[%clk 0:00:38.9]} 27. Rf3 {[%clk 0:01:42.9]} 27... Bf8 {[%clk
0:00:39.7]} 28. Bd2 {[%clk 0:01:43.5]} 28... Rfg7 {[%clk 0:00:32.3]} 29. Rf2
{[%clk 0:01:23.5]} 29... Rg4 {[%clk 0:00:29.9]} 30. Re1 {[%clk 0:01:11.1]} 30...
Qc6 {[%clk 0:00:27.3]} 31. Qf7 {[%clk 0:01:02]} 31... Rxe4 {[%clk 0:00:27.2]}
32. Rxe4 {[%clk 0:00:59.9]} 32... Qxe4 {[%clk 0:00:28.4]} 33. Qxf6+ {[%clk
0:01:01.6]} 33... Bg7 {[%clk 0:00:29.6]} 34. Qe7 {[%clk 0:00:49.6]} 34... Qxc2
{[%clk 0:00:19.5]} 35. h3 {[%clk 0:00:51]} 35... Qe4 {[%clk 0:00:11.7]} 36. Kh2
{[%clk 0:00:26.3]} 36... c5 {[%clk 0:00:07.5]} 37. Bg5 {[%clk 0:00:26]} 37... h6
{[%clk 0:00:05.2]} 38. Bh4 {[%clk 0:00:11.4]} 38... Qd5 {[%clk 0:00:04.9]} 39.
f6 {[%clk 0:00:07.8]} 39... Bf8 {[%clk 0:00:06.5]} 40. Qe8 {[%clk 0:00:09.4]}
40... e4 {[%clk 0:00:05.8]} 41. f7 {[%clk 0:00:07.3]} 41... Bd6+ {[%clk
0:00:07.1]} 42. Kh1 {[%clk 0:00:08.1]} 42... Rf8 {[%clk 0:00:08.3]} 43. Be7
{[%clk 0:00:03.9]} 43... Bxe7 {[%clk 0:00:07.4]} 44. Qxe7 {[%clk 0:00:05]} 44...
Kg7 {[%clk 0:00:07.7]} 45. Qf6+ {[%clk 0:00:05.9]} 45... Kh7 {[%clk 0:00:09.3]}
46. Rf5 {[%clk 0:00:06.5]} 46... Qc6 {[%clk 0:00:04.5]} 47. Qe7 {[%clk
0:00:06.7]} 47... Kg7 {[%clk 0:00:05.9]} 48. Rf4 {[%clk 0:00:07.3]} 48... h5
{[%clk 0:00:06.8]} 49. Rf5 {[%clk 0:00:08.7]} 1-0

[Event "*** MasterClass Titled Tuesday Blitz"]
[Site "Chess.com"]
[Date "2017.09.05"]
[Round "6"]
[White "nihalsarin"]
[Black "Bengalas"]
[Result "1-0"]
[WhiteElo "2645"]
[BlackElo "2492"]
[TimeControl "180+2"]
[EndTime "14:29:16 PDT"]
[Termination "nihalsarin won by resignation"]

1. e4 {[%clk 0:03:00.6]} 1... c5 {[%clk 0:03:00.8]} 2. Nf3 {[%clk 0:03:01.2]}
2... d6 {[%clk 0:03:02]} 3. d4 {[%clk 0:03:02.8]} 3... cxd4 {[%clk 0:03:03.6]}
4. Nxd4 {[%clk 0:03:04.5]} 4... Nf6 {[%clk 0:03:04.7]} 5. Nc3 {[%clk 0:03:05.7]}
5... a6 {[%clk 0:03:05.7]} 6. Be2 {[%clk 0:03:06.2]} 6... e5 {[%clk 0:03:06.2]}
7. Nf3 {[%clk 0:03:07.3]} 7... h6 {[%clk 0:02:58.2]} 8. Bc4 {[%clk 0:03:04.7]}
8... Be7 {[%clk 0:02:57.7]} 9. Nh4 {[%clk 0:03:05.5]} 9... Be6 {[%clk
0:02:46.3]} 10. Bxe6 {[%clk 0:03:04.6]} 10... fxe6 {[%clk 0:02:47.1]} 11. Ng6
{[%clk 0:03:06.2]} 11... Rg8 {[%clk 0:02:46.3]} 12. h4 {[%clk 0:02:56.1]} 12...
Nbd7 {[%clk 0:02:43.8]} 13. Be3 {[%clk 0:02:55.2]} 13... Nf8 {[%clk 0:02:44.4]}
14. Nxe7 {[%clk 0:02:52.2]} 14... Kxe7 {[%clk 0:02:41.8]} 15. Qf3 {[%clk
0:02:49.4]} 15... Rc8 {[%clk 0:02:40.8]} 16. Rd1 {[%clk 0:02:38.8]} 16... N8d7
{[%clk 0:02:24.4]} 17. O-O {[%clk 0:02:36.7]} 17... g5 {[%clk 0:02:10]} 18. hxg5
{[%clk 0:02:35]} 18... hxg5 {[%clk 0:02:11.3]} 19. g3 {[%clk 0:02:24.4]} 19...
g4 {[%clk 0:02:05]} 20. Qe2 {[%clk 0:02:24.8]} 20... Qe8 {[%clk 0:01:59.8]} 21.
Kg2 {[%clk 0:02:24.4]} 21... Qg6 {[%clk 0:02:00.6]} 22. Qd3 {[%clk 0:02:23.2]}
22... Rc6 {[%clk 0:02:00.1]} 23. Rh1 {[%clk 0:02:23.9]} 23... Qg7 {[%clk
0:01:40.3]} 24. a4 {[%clk 0:02:14.7]} 24... Rh8 {[%clk 0:01:36.8]} 25. b4 {[%clk
0:01:49.7]} 25... Rxh1 {[%clk 0:01:35.3]} 26. Rxh1 {[%clk 0:01:50.3]} 26... Qg6
{[%clk 0:01:11.1]} 27. Rh6 {[%clk 0:01:32.5]} 27... Qg7 {[%clk 0:01:10.7]} 28.
a5 {[%clk 0:01:04.5]} 28... Ng8 {[%clk 0:00:50.8]} 29. Rh5 {[%clk 0:01:04.2]}
29... Ndf6 {[%clk 0:00:50.2]} 30. Rh4 {[%clk 0:00:45]} 30... Qg6 {[%clk
0:00:46.9]} 31. Bd2 {[%clk 0:00:43.1]} 31... Kd7 {[%clk 0:00:33.2]} 32. Na4
{[%clk 0:00:21.7]} 32... Qxe4+ {[%clk 0:00:24.6]} 33. Qxe4 {[%clk 0:00:22.7]}
33... Nxe4 {[%clk 0:00:25.5]} 34. Nb6+ {[%clk 0:00:23.5]} 34... Ke7 {[%clk
0:00:19.9]} 35. Rxg4 {[%clk 0:00:22.4]} 35... Ngf6 {[%clk 0:00:13.1]} 36. Rg7+
{[%clk 0:00:23.2]} 36... Kf8 {[%clk 0:00:13.5]} 37. Bh6 {[%clk 0:00:24]} 37...
Ke8 {[%clk 0:00:11.9]} 38. c4 {[%clk 0:00:22.6]} 38... d5 {[%clk 0:00:10.6]} 39.
c5 {[%clk 0:00:23.5]} 39... d4 {[%clk 0:00:11.5]} 40. Rxb7 {[%clk 0:00:24.3]}
40... d3 {[%clk 0:00:12.3]} 41. Kf1 {[%clk 0:00:21.5]} 41... Nd5 {[%clk
0:00:11.8]} 42. Nxd5 {[%clk 0:00:20.1]} 42... exd5 {[%clk 0:00:13]} 43. Rb6
{[%clk 0:00:21.7]} 43... Kd7 {[%clk 0:00:13.8]} 44. g4 {[%clk 0:00:19.5]} 44...
d4 {[%clk 0:00:12.8]} 45. f3 {[%clk 0:00:18.6]} 45... Nc3 {[%clk 0:00:09.1]} 46.
Ke1 {[%clk 0:00:19.8]} 46... e4 {[%clk 0:00:07.1]} 47. fxe4 {[%clk 0:00:20.3]}
47... Nxe4 {[%clk 0:00:08.2]} 48. g5 {[%clk 0:00:21.1]} 48... d2+ {[%clk
0:00:06.1]} 49. Kd1 {[%clk 0:00:21.9]} 49... d3 {[%clk 0:00:06.3]} 50. Rxc6
{[%clk 0:00:21.9]} 50... Kxc6 {[%clk 0:00:07.5]} 51. g6 {[%clk 0:00:23.5]} 51...
Kb5 {[%clk 0:00:08.4]} 52. g7 {[%clk 0:00:24]} 52... Kxb4 {[%clk 0:00:09]} 53.
g8=Q {[%clk 0:00:24.3]} 1-0

[Event "*** MasterClass Titled Tuesday Blitz"]
[Site "Chess.com"]
[Date "2017.09.05"]
[Round "6"]
[White "temiksmozg"]
[Black "VladDobrov"]
[Result "1-0"]
[WhiteElo "2430"]
[BlackElo "2608"]
[TimeControl "180+2"]
[EndTime "14:29:18 PDT"]
[Termination "temiksmozg won by resignation"]

1. d4 {[%clk 0:03:01.9]} 1... Nf6 {[%clk 0:03:00.4]} 2. c4 {[%clk 0:03:01.5]}
2... e6 {[%clk 0:03:01.6]} 3. Nf3 {[%clk 0:03:00.7]} 3... c5 {[%clk 0:03:00.2]}
4. d5 {[%clk 0:03:00.6]} 4... exd5 {[%clk 0:03:02]} 5. cxd5 {[%clk 0:03:02.9]}
5... Bd6 {[%clk 0:03:03.2]} 6. Nc3 {[%clk 0:03:03.2]} 6... Bc7 {[%clk
0:03:04.3]} 7. d6 {[%clk 0:03:03.3]} 7... Ba5 {[%clk 0:03:05.1]} 8. Bg5 {[%clk
0:03:04.3]} 8... Qb6 {[%clk 0:03:05.8]} 9. Bxf6 {[%clk 0:02:43.2]} 9... Qxb2
{[%clk 0:03:06.4]} 10. Bxg7 {[%clk 0:02:43.5]} 10... Bxc3+ {[%clk 0:03:07.3]}
11. Bxc3 {[%clk 0:02:45.4]} 11... Qxc3+ {[%clk 0:03:08.8]} 12. Nd2 {[%clk
0:02:46.4]} 12... Nc6 {[%clk 0:02:41.5]} 13. Rc1 {[%clk 0:02:40.2]} 13... Qd4
{[%clk 0:02:42]} 14. Qb3 {[%clk 0:02:14.1]} 14... b6 {[%clk 0:02:28.8]} 15. Nc4
{[%clk 0:02:10.8]} 15... Bb7 {[%clk 0:02:23.9]} 16. e3 {[%clk 0:02:06.3]} 16...
Qg7 {[%clk 0:02:15.6]} 17. f3 {[%clk 0:01:51]} 17... O-O {[%clk 0:02:13.3]} 18.
Kf2 {[%clk 0:01:49]} 18... Rae8 {[%clk 0:02:10.5]} 19. a4 {[%clk 0:01:44.4]}
19... Ne5 {[%clk 0:01:53]} 20. a5 {[%clk 0:01:37.7]} 20... Bd5 {[%clk
0:01:53.8]} 21. axb6 {[%clk 0:01:13.8]} 21... axb6 {[%clk 0:01:55.7]} 22. e4
{[%clk 0:01:10.6]} 22... Ng4+ {[%clk 0:01:35]} 23. fxg4 {[%clk 0:00:49.5]} 23...
Rxe4 {[%clk 0:01:35.8]} 24. Qc3 {[%clk 0:00:43.6]} 24... Qg5 {[%clk 0:00:47.7]}
25. Nxb6 {[%clk 0:00:36]} 25... Bc6 {[%clk 0:00:45.6]} 26. Be2 {[%clk
0:00:22.2]} 26... Rxe2+ {[%clk 0:00:37.9]} 27. Kxe2 {[%clk 0:00:22.4]} 27...
Re8+ {[%clk 0:00:39.8]} 28. Kf2 {[%clk 0:00:20]} 28... Qf4+ {[%clk 0:00:40.7]}
29. Kg1 {[%clk 0:00:19.3]} 29... Re3 {[%clk 0:00:41.3]} 30. Qd2 {[%clk
0:00:15.2]} 30... Qxg4 {[%clk 0:00:37.1]} 31. h3 {[%clk 0:00:14.2]} 31... Qg3
{[%clk 0:00:37.7]} 32. Qf2 {[%clk 0:00:15]} 32... Qg5 {[%clk 0:00:34.4]} 33. Rf1
{[%clk 0:00:14.6]} 33... Rf3 {[%clk 0:00:32.9]} 34. Qe2 {[%clk 0:00:12.4]} 34...
Rxf1+ {[%clk 0:00:13.2]} 35. Qxf1 {[%clk 0:00:13.1]} 35... c4 {[%clk 0:00:11.3]}
36. Nc8 {[%clk 0:00:13]} 36... Kg7 {[%clk 0:00:08.4]} 37. Ne7 {[%clk 0:00:13.8]}
37... Be4 {[%clk 0:00:09.5]} 38. Qf2 {[%clk 0:00:13.5]} 38... c3 {[%clk
0:00:10.4]} 39. Kh2 {[%clk 0:00:14.6]} 39... f6 {[%clk 0:00:10.5]} 40. Re1
{[%clk 0:00:11.6]} 40... c2 {[%clk 0:00:11.4]} 41. Rxe4 {[%clk 0:00:10.2]} 41...
c1=Q {[%clk 0:00:12.4]} 42. Rg4 {[%clk 0:00:11.4]} 42... Qxg4 {[%clk 0:00:13.5]}
43. hxg4 {[%clk 0:00:13.3]} 43... Qg5 {[%clk 0:00:14.9]} 44. Nf5+ {[%clk
0:00:14.3]} 44... Kf7 {[%clk 0:00:16.4]} 45. Qf3 {[%clk 0:00:15.8]} 45... Qd2
{[%clk 0:00:16]} 46. Kh3 {[%clk 0:00:16.5]} 46... Kg6 {[%clk 0:00:17.3]} 47. Qe4
{[%clk 0:00:17.8]} 47... Kg5 {[%clk 0:00:18.3]} 48. Ng3 {[%clk 0:00:17.7]} 48...
Qxd6 {[%clk 0:00:17.6]} 49. Qxh7 {[%clk 0:00:17.7]} 49... Kf4 {[%clk 0:00:18.5]}
50. Qe4+ {[%clk 0:00:18.3]} 50... Kg5 {[%clk 0:00:19.4]} 51. Qf5+ {[%clk
0:00:19.8]} 51... Kh6 {[%clk 0:00:20.9]} 52. Qh5+ {[%clk 0:00:21.3]} 52... Kg7
{[%clk 0:00:22.3]} 53. Nf5+ {[%clk 0:00:23.2]} 1-0

[Event "*** MasterClass Titled Tuesday Blitz"]
[Site "Chess.com"]
[Date "2017.09.05"]
[Round "6"]
[White "Jahonas"]
[Black "workhard91"]
[Result "1-0"]
[WhiteElo "2221"]
[BlackElo "2295"]
[TimeControl "180+2"]
[EndTime "14:29:21 PDT"]
[Termination "Jahonas won by checkmate"]

1. d4 {[%clk 0:03:02]} 1... Nf6 {[%clk 0:03:01.2]} 2. c4 {[%clk 0:03:02.5]} 2...
e6 {[%clk 0:03:02.5]} 3. Nf3 {[%clk 0:03:03.7]} 3... Bb4+ {[%clk 0:03:02.8]} 4.
Bd2 {[%clk 0:03:04.1]} 4... c5 {[%clk 0:03:04.1]} 5. g3 {[%clk 0:03:03.2]} 5...
O-O {[%clk 0:01:45.6]} 6. Bg2 {[%clk 0:02:58.6]} 6... Qb6 {[%clk 0:01:46.8]} 7.
O-O {[%clk 0:02:53.3]} 7... cxd4 {[%clk 0:01:39.6]} 8. Nxd4 {[%clk 0:02:44.1]}
8... Be7 {[%clk 0:01:13.4]} 9. Nb5 {[%clk 0:02:09.5]} 9... d5 {[%clk 0:01:02.6]}
10. Be3 {[%clk 0:02:04.6]} 10... Bc5 {[%clk 0:01:03.7]} 11. Bxc5 {[%clk
0:01:59.1]} 11... Qxc5 {[%clk 0:01:05.6]} 12. N5a3 {[%clk 0:01:55.7]} 12... dxc4
{[%clk 0:00:58.1]} 13. Qc2 {[%clk 0:01:55.8]} 13... e5 {[%clk 0:00:42.6]} 14.
Qxc4 {[%clk 0:01:54.9]} 14... Na6 {[%clk 0:00:39.7]} 15. Nc3 {[%clk 0:01:53.7]}
15... Rb8 {[%clk 0:00:21.3]} 16. Ncb5 {[%clk 0:01:38.3]} 16... Qb6 {[%clk
0:00:21.1]} 17. Rfd1 {[%clk 0:01:31]} 17... Be6 {[%clk 0:00:22]} 18. Qc3 {[%clk
0:01:27.8]} 18... Rfe8 {[%clk 0:00:13.1]} 19. Rd6 {[%clk 0:01:11.7]} 19... Qc5
{[%clk 0:00:14.4]} 20. Rc1 {[%clk 0:01:08]} 20... Qxc3 {[%clk 0:00:10.1]} 21.
bxc3 {[%clk 0:00:52.2]} 21... Bxa2 {[%clk 0:00:09.8]} 22. Nxa7 {[%clk
0:00:51.8]} 22... Nc5 {[%clk 0:00:10.5]} 23. N3b5 {[%clk 0:00:50]} 23... Red8
{[%clk 0:00:11.1]} 24. Rcd1 {[%clk 0:00:48]} 24... Rxd6 {[%clk 0:00:09.5]} 25.
Rxd6 {[%clk 0:00:48.2]} 25... Nce4 {[%clk 0:00:11.4]} 26. Rb6 {[%clk 0:00:46.8]}
26... Bc4 {[%clk 0:00:08.5]} 27. Nc6 {[%clk 0:00:43.2]} 27... Ra8 {[%clk
0:00:09]} 28. Bxe4 {[%clk 0:00:36.8]} 28... Nxe4 {[%clk 0:00:10.9]} 29. Rxb7
{[%clk 0:00:37.1]} 29... Bxe2 {[%clk 0:00:11.9]} 30. Nxe5 {[%clk 0:00:31.8]}
30... f6 {[%clk 0:00:08.3]} 31. Nd4 {[%clk 0:00:27.2]} 31... Ra1+ {[%clk
0:00:07.2]} 32. Kg2 {[%clk 0:00:26.9]} 32... Bf1+ {[%clk 0:00:09.1]} 33. Kf3
{[%clk 0:00:27.5]} 33... Ng5+ {[%clk 0:00:10.5]} 34. Kg4 {[%clk 0:00:27.9]}
34... fxe5 {[%clk 0:00:12]} 35. Kxg5 {[%clk 0:00:28.5]} 35... exd4 {[%clk
0:00:13.6]} 36. cxd4 {[%clk 0:00:30.3]} 36... Rd1 {[%clk 0:00:14.7]} 37. Rb8+
{[%clk 0:00:30.9]} 37... Kf7 {[%clk 0:00:15.7]} 38. Rb7+ {[%clk 0:00:32.2]}
38... Kf8 {[%clk 0:00:17]} 39. Rb8+ {[%clk 0:00:33.3]} 39... Kf7 {[%clk
0:00:18.3]} 40. Rb7+ {[%clk 0:00:34.7]} 40... Ke6 {[%clk 0:00:18.6]} 41. Rxg7
{[%clk 0:00:35.5]} 41... Bd3 {[%clk 0:00:19.8]} 42. f4 {[%clk 0:00:33.5]} 42...
Rf1 {[%clk 0:00:20]} 43. g4 {[%clk 0:00:34.1]} 43... Kd5 {[%clk 0:00:21.3]} 44.
f5 {[%clk 0:00:35.1]} 44... Kxd4 {[%clk 0:00:19.1]} 45. Rxh7 {[%clk 0:00:36]}
45... Ke5 {[%clk 0:00:20.6]} 46. Re7+ {[%clk 0:00:36.2]} 46... Kd6 {[%clk
0:00:21.4]} 47. Re6+ {[%clk 0:00:37.3]} 47... Kd7 {[%clk 0:00:22.4]} 48. h4
{[%clk 0:00:38.5]} 48... Bc4 {[%clk 0:00:23.8]} 49. Re4 {[%clk 0:00:38.5]} 49...
Bf7 {[%clk 0:00:23.5]} 50. Kf6 {[%clk 0:00:37.8]} 50... Bd5 {[%clk 0:00:25.2]}
51. Rd4 {[%clk 0:00:38.3]} 51... Kd6 {[%clk 0:00:26.8]} 52. g5 {[%clk
0:00:39.1]} 52... Kc5 {[%clk 0:00:28.4]} 53. Rd2 {[%clk 0:00:39.3]} 53... Rf4
{[%clk 0:00:28]} 54. Ke5 {[%clk 0:00:39.7]} 54... Rxh4 {[%clk 0:00:28.9]} 55.
Rxd5+ {[%clk 0:00:40.2]} 55... Kc6 {[%clk 0:00:30.1]} 56. Rd6+ {[%clk
0:00:41.4]} 56... Kc7 {[%clk 0:00:31.1]} 57. Rd1 {[%clk 0:00:42.5]} 57... Rg4
{[%clk 0:00:31.9]} 58. Kf6 {[%clk 0:00:43.5]} 58... Kc6 {[%clk 0:00:32.8]} 59.
g6 {[%clk 0:00:44.8]} 59... Kc7 {[%clk 0:00:33.7]} 60. Kf7 {[%clk 0:00:46]}
60... Rf4 {[%clk 0:00:32.2]} 61. f6 {[%clk 0:00:47.1]} 61... Re4 {[%clk
0:00:33.1]} 62. g7 {[%clk 0:00:48.3]} 62... Rg4 {[%clk 0:00:35]} 63. g8=Q {[%clk
0:00:49.5]} 63... Re4 {[%clk 0:00:34.2]} 64. Qd8+ {[%clk 0:00:45.7]} 64... Kc6
{[%clk 0:00:35.7]} 65. Qd5+ {[%clk 0:00:46.4]} 65... Kc7 {[%clk 0:00:37.3]} 66.
Qxe4 {[%clk 0:00:46.9]} 66... Kb6 {[%clk 0:00:39.1]} 67. Qc2 {[%clk 0:00:47.7]}
67... Ka5 {[%clk 0:00:40]} 68. Rd3 {[%clk 0:00:48.6]} 68... Kb4 {[%clk
0:00:40.3]} 69. Rb3+ {[%clk 0:00:49.6]} 69... Ka5 {[%clk 0:00:43.1]} 70. Qa2#
{[%clk 0:00:51]} 1-0

[Event "*** MasterClass Titled Tuesday Blitz"]
[Site "Chess.com"]
[Date "2017.09.05"]
[Round "6"]
[White "DiogenesSinopeus"]
[Black "PowerThinking2650"]
[Result "0-1"]
[WhiteElo "2363"]
[BlackElo "2218"]
[TimeControl "180+2"]
[EndTime "14:29:23 PDT"]
[Termination "PowerThinking2650 won by resignation"]

1. d4 {[%clk 0:03:01.9]} 1... Nf6 {[%clk 0:02:59.7]} 2. c4 {[%clk 0:03:02.9]}
2... g6 {[%clk 0:03:00.6]} 3. Nc3 {[%clk 0:00:37.2]} 3... Bg7 {[%clk 0:02:57.3]}
4. e4 {[%clk 0:00:38.2]} 4... d6 {[%clk 0:02:57.6]} 5. Nf3 {[%clk 0:00:39.3]}
5... O-O {[%clk 0:02:59]} 6. Be2 {[%clk 0:00:39.1]} 6... e5 {[%clk 0:03:00.4]}
7. dxe5 {[%clk 0:00:41]} 7... dxe5 {[%clk 0:03:00.9]} 8. Qxd8 {[%clk 0:00:42.9]}
8... Rxd8 {[%clk 0:03:02.1]} 9. Nd5 {[%clk 0:00:44.8]} 9... Nxd5 {[%clk
0:02:50.4]} 10. cxd5 {[%clk 0:00:46.7]} 10... c6 {[%clk 0:02:51.2]} 11. Bc4
{[%clk 0:00:48]} 11... cxd5 {[%clk 0:02:50.2]} 12. Bxd5 {[%clk 0:00:49.9]} 12...
Nd7 {[%clk 0:02:50.8]} 13. Bg5 {[%clk 0:00:51.2]} 13... Re8 {[%clk 0:02:50.9]}
14. Nd2 {[%clk 0:00:52.6]} 14... h6 {[%clk 0:02:50.3]} 15. Be3 {[%clk
0:00:53.3]} 15... Nf6 {[%clk 0:02:51.1]} 16. Bb3 {[%clk 0:00:48.3]} 16... Be6
{[%clk 0:02:45.6]} 17. f3 {[%clk 0:00:45.5]} 17... Bxb3 {[%clk 0:02:38.4]} 18.
axb3 {[%clk 0:00:47.4]} 18... Rec8 {[%clk 0:02:36.6]} 19. Ke2 {[%clk 0:00:45]}
19... a6 {[%clk 0:02:22]} 20. Nc4 {[%clk 0:00:45.5]} 20... Nd7 {[%clk
0:02:18.2]} 21. Rhd1 {[%clk 0:00:45.2]} 21... Rc7 {[%clk 0:02:15.7]} 22. Rxd7
{[%clk 0:00:28.1]} 22... Rxd7 {[%clk 0:02:15.4]} 23. Nb6 {[%clk 0:00:29.4]}
23... Rad8 {[%clk 0:02:14.3]} 24. Nxd7 {[%clk 0:00:30.4]} 24... Rxd7 {[%clk
0:02:15.5]} 25. Rd1 {[%clk 0:00:28.9]} 25... Rxd1 {[%clk 0:02:10.9]} 26. Kxd1
{[%clk 0:00:30.8]} 26... f5 {[%clk 0:02:11.3]} 27. Kc2 {[%clk 0:00:31.6]} 27...
Kf7 {[%clk 0:02:12.4]} 28. Kd3 {[%clk 0:00:31.4]} 28... b5 {[%clk 0:02:11.8]}
29. Bc5 {[%clk 0:00:28]} 29... Ke6 {[%clk 0:02:10.2]} 30. Kc3 {[%clk 0:00:25]}
30... Kd7 {[%clk 0:02:08.2]} 31. h3 {[%clk 0:00:17.8]} 31... Kc6 {[%clk
0:02:08.4]} 32. Be7 {[%clk 0:00:16.3]} 32... h5 {[%clk 0:02:07.7]} 33. Kb4
{[%clk 0:00:14.2]} 33... Bh6 {[%clk 0:02:07.8]} 34. Kc3 {[%clk 0:00:10.9]} 34...
Be3 {[%clk 0:02:06.8]} 35. Kc2 {[%clk 0:00:07]} 35... Bc5 {[%clk 0:01:56.8]} 36.
Bh4 {[%clk 0:00:06.9]} 36... Kd7 {[%clk 0:01:32.7]} 37. Bg3 {[%clk 0:00:05.5]}
37... Ke6 {[%clk 0:01:33.1]} 38. Be1 {[%clk 0:00:06.7]} 38... Be3 {[%clk
0:01:28.7]} 39. Bc3 {[%clk 0:00:05.1]} 39... Kf6 {[%clk 0:01:24.5]} 40. Kd3
{[%clk 0:00:06.5]} 40... Bf4 {[%clk 0:01:17.6]} 41. Ke2 {[%clk 0:00:04.1]} 41...
Ke6 {[%clk 0:00:59.6]} 42. Kd3 {[%clk 0:00:04.9]} 42... Kd6 {[%clk 0:01:00.4]}
43. Bb4+ {[%clk 0:00:06.1]} 43... Kc6 {[%clk 0:01:01.4]} 44. Bc3 {[%clk
0:00:07.6]} 44... Kc5 {[%clk 0:01:02.3]} 45. Be1 {[%clk 0:00:07.8]} 45... Bc1
{[%clk 0:01:01]} 46. Bc3 {[%clk 0:00:09]} 46... Kd6 {[%clk 0:01:01]} 47. Kc2
{[%clk 0:00:09]} 47... Bg5 {[%clk 0:01:00.4]} 48. Bb4+ {[%clk 0:00:10.2]} 48...
Ke6 {[%clk 0:01:01.5]} 49. Kd3 {[%clk 0:00:11.4]} 49... Bd8 {[%clk 0:00:59.6]}
50. Be1 {[%clk 0:00:12.1]} 50... Bb6 {[%clk 0:00:58]} 51. Bc3 {[%clk 0:00:12.1]}
51... a5 {[%clk 0:00:56.3]} 52. Bd2 {[%clk 0:00:12.7]} 52... Kf6 {[%clk
0:00:56.2]} 53. Bc3 {[%clk 0:00:13.5]} 53... b4 {[%clk 0:00:56.9]} 54. Bd2
{[%clk 0:00:13.7]} 54... Bd4 {[%clk 0:00:57.9]} 55. Bc1 {[%clk 0:00:14.4]} 55...
f4 {[%clk 0:00:59.2]} 56. Kc4 {[%clk 0:00:15.6]} 56... Kg5 {[%clk 0:00:59.5]}
57. Bd2 {[%clk 0:00:06.4]} 57... Bxb2 {[%clk 0:00:56.9]} 58. Kb5 {[%clk
0:00:05.6]} 58... Bc3 {[%clk 0:00:54.7]} 59. Bc1 {[%clk 0:00:07]} 59... Kh4
{[%clk 0:00:54.9]} 60. Kxa5 {[%clk 0:00:08.2]} 60... Kg3 {[%clk 0:00:56.1]} 61.
Kb5 {[%clk 0:00:06.1]} 61... Kxg2 {[%clk 0:00:57.3]} 62. Kc4 {[%clk 0:00:07.6]}
62... Kxh3 {[%clk 0:00:57.1]} 0-1